fUST/lending_fUST_20250607
["ID","MTS","AMOUNT","RATE_DAILY","PERIOD"]
[364834703,1749267038235,-440.0,0.00019452,2]
[364834705,1749267038245,-758.23,0.00019452,2]
[364834707,1749267038254,-440.0,0.00019452,2]
[364834709,1749267038264,-440.0,0.00019452,2]
[364834711,1749267038274,-440.0,0.00019452,2]
[364834713,1749267038283,-937.64,0.00019452,2]
[364834715,1749267038293,-523.41,0.00019452,2]
[364834717,1749267038303,-440.0,0.00019452,2]
[364834719,1749267038313,-487.43,0.00019452,2]
[364834721,1749267038323,-500.0,0.00019725,2]
[364834723,1749267038333,-284.13234121,0.00019725,2]
[364834725,1749267038343,-1285.57,0.00019726,2]
[364834727,1749267038353,-440.0,0.00019726,2]
[364834729,1749267038363,-440.0,0.00019726,2]
[364834731,1749267038373,-587.05,0.00019726,2]
[364834733,1749267038383,-440.0,0.00019726,2]
[364834735,1749267038393,-440.0,0.00019726,2]
[364834737,1749267038403,-806.76,0.00019726,2]
[364834739,1749267038412,-440.0,0.00019726,2]
[364834741,1749267038422,-758.23,0.00019726,2]
[364834743,1749267038432,-440.0,0.00019726,2]
[364834745,1749267038442,-440.0,0.00019726,2]
[364834747,1749267038452,-440.0,0.00019726,2]
[364834749,1749267038463,-937.64,0.00019726,2]
[364834751,1749267038473,-523.41,0.00019726,2]
[364834753,1749267038483,-440.0,0.00019726,2]
[364834755,1749267038492,-487.43,0.00019726,2]
[364834757,1749267038503,-150.0,0.00019733,2]
[364834759,1749267038513,-440.0,0.0001977,2]
[364834761,1749267038522,-500.0,0.0001977,2]
[364834763,1749267038532,-440.0,0.0001977,2]
[364834766,1749267038542,-440.0,0.0001977,2]
[364834768,1749267038552,-726.77522311,0.000199,2]
[364834770,1749267038564,-420.0,0.00019902,2]
[364834772,1749267038574,-213.01382694,0.00019953,2]
[364834774,1749267038583,-834.52263295,0.00019953,2]
[364834776,1749267038593,-160.0,0.00019954,2]
[364834792,1749267038746,-842.5625,0.00019954,2]
[364834794,1749267038757,-279.74242234,0.0002,5]
[364834796,1749267038767,-1285.57,0.0002,2]
[364834798,1749267038779,-440.0,0.0002,2]
[364834800,1749267038789,-440.0,0.0002,2]
[364834802,1749267038799,-587.05,0.0002,2]
[364834804,1749267038809,-440.0,0.0002,2]
[364834806,1749267038819,-440.0,0.0002,2]
[364834808,1749267038829,-806.76,0.0002,2]
[364834810,1749267038839,-440.0,0.0002,2]
[364834812,1749267038849,-160.69017976,0.0002,2]
[364834814,1749267038859,-758.23,0.0002,2]
[364834816,1749267038869,-440.0,0.0002,2]
[364834818,1749267038879,-440.0,0.0002,2]
[364834820,1749267038888,-440.0,0.0002,2]
[364834822,1749267038898,-937.64,0.0002,2]
[364834824,1749267038908,-523.41,0.0002,2]
[364834826,1749267038918,-710.0,0.0002,2]
[364834828,1749267038928,-440.0,0.0002,2]
[364834830,1749267038938,-487.43,0.0002,2]
[364834832,1749267038948,-440.0,0.00020044,2]
[364834834,1749267038958,-574.51246804,0.00020044,2]
[364834836,1749267038968,-440.0,0.00020044,2]
[364834838,1749267038981,-440.0,0.00020044,2]
[364834840,1749267038990,-500.0,0.00020052,2]
[364834842,1749267038999,-726.77522301,0.00020072,2]
[364834844,1749267039009,-5000.0,0.00020082,2]
[364834846,1749267039019,-121.33753034,0.00020082,2]
[364834848,1749267039032,-86.06246966,0.00020082,2]
[364834850,1749267039042,-164.08065705,0.00020144,2]
[364834852,1749267039053,-248.862809,0.00020187,2]
[364834854,1749267039063,-726.77522301,0.00020245,2]
[364834856,1749267039072,-1285.57,0.00020273,2]
[364834858,1749267039082,-440.0,0.00020273,2]
[364834860,1749267039092,-440.0,0.00020273,2]
[364834862,1749267039102,-587.05,0.00020273,2]
[364834864,1749267039112,-440.0,0.00020273,2]
[364834866,1749267039121,-440.0,0.00020273,2]
[364834868,1749267039132,-806.76,0.00020273,2]
[364834870,1749267039142,-564.2,0.00020273,2]
[364834872,1749267039151,-758.23,0.00020273,2]
[364834874,1749267039161,-440.0,0.00020273,2]
[364834876,1749267039171,-440.0,0.00020273,2]
[364834878,1749267039182,-440.0,0.00020273,2]
[364834880,1749267039191,-937.64,0.00020273,2]
[364834882,1749267039201,-448.87384494,0.00020273,2]
[364835019,1749267040577,-74.53615506,0.00020273,2]
[364835021,1749267040587,-440.0,0.00020273,2]
[364835023,1749267040598,-404.54034839,0.00020273,2]
[364835025,1749267040609,-82.88965161,0.00020273,2]
[364835027,1749267040619,-440.0,0.00020318,2]
[364835029,1749267040629,-440.0,0.00020318,2]
[364835031,1749267040639,-440.0,0.00020318,2]
[364835033,1749267040649,-726.77522301,0.00020417,3]
[364835035,1749267040659,-1285.57,0.00020547,2]
[364835037,1749267040668,-440.0,0.00020547,2]
[364835039,1749267040678,-440.0,0.00020547,2]
[364835041,1749267040688,-587.05,0.00020547,2]
[364835043,1749267040698,-440.0,0.00020547,2]
[364835045,1749267040708,-440.0,0.00020547,2]
[364835047,1749267040718,-806.76,0.00020547,2]
[364835049,1749267040728,-758.23,0.00020547,2]
[364835051,1749267040737,-440.0,0.00020547,2]
[364835053,1749267040746,-440.0,0.00020547,2]
[364835055,1749267040756,-440.0,0.00020547,2]
[364835057,1749267040766,-937.64,0.00020547,2]
[364835059,1749267040775,-523.41,0.00020547,2]
[364835061,1749267040784,-440.0,0.00020547,2]
[364835063,1749267040794,-487.43,0.00020547,2]
[364835065,1749267040803,-726.77522301,0.0002059,3]
[364835067,1749267040813,-440.0,0.00020592,2]
[364835069,1749267040822,-440.0,0.00020592,2]
[364835070,1749267040832,-440.0,0.00020592,2]
[364835072,1749267040841,-5000.0,0.0002063,2]
[364835074,1749267040851,-298.61357319,0.00020762,3]
[364835280,1749267043251,-964.18,0.00019178,2]
[364835282,1749267043261,-428.16164982,0.00020762,3]
[364835284,1749267043271,-440.0,0.00020821,2]
[364835286,1749267043280,-587.05,0.00020821,2]
[364835288,1749267043290,-440.0,0.00020821,2]
[364835290,1749267043300,-440.0,0.00020821,2]
[364835292,1749267043309,-806.76,0.00020821,2]
[364835294,1749267043319,-758.23,0.00020821,2]
[364835296,1749267043329,-440.0,0.00020821,2]
[364835298,1749267043339,-440.0,0.00020821,2]
[364835300,1749267043349,-440.0,0.00020821,2]
[364835302,1749267043359,-937.64,0.00020821,2]
[364835304,1749267043368,-523.41,0.00020821,2]
[364835306,1749267043377,-440.0,0.00020821,2]
[364835308,1749267043387,-487.43,0.00020821,2]
[364835310,1749267043397,-440.0,0.00020866,2]
[364835312,1749267043406,-440.0,0.00020866,2]
[364835314,1749267043416,-440.0,0.00020866,2]
[364835316,1749267043425,-300.0,0.00020896,2]
[364835318,1749267043434,-726.77522301,0.00020934,4]
[364835320,1749267043444,-524.89,0.00021085,10]
[364835322,1749267043453,-440.0,0.00021095,2]
[364835324,1749267043463,-587.05,0.00021095,2]
[364835326,1749267043472,-440.0,0.00021095,2]
[364835328,1749267043482,-440.0,0.00021095,2]
[364835330,1749267043491,-806.76,0.00021095,2]
[364835332,1749267043502,-758.23,0.00021095,2]
[364835334,1749267043511,-440.0,0.00021095,2]
[364835336,1749267043521,-440.0,0.00021095,2]
[364835338,1749267043531,-440.0,0.00021095,2]
[364835340,1749267043541,-523.41,0.00021095,2]
[364835342,1749267043550,-937.64,0.00021095,2]
[364835344,1749267043559,-440.0,0.00021095,2]
[364835346,1749267043569,-487.43,0.00021095,2]
[364835348,1749267043578,-726.77522301,0.00021107,4]
[364835349,1749267043588,-526.64517773,0.0002114,2]
[364835351,1749267043598,-440.0,0.0002114,2]
[364835353,1749267043608,-551.9,0.0002114,2]
[364835355,1749267043617,-500.0,0.00021148,2]
[364835358,1749267043627,-5000.0,0.00021178,2]
[364835360,1749267043637,-726.77522301,0.00021279,5]
[364835362,1749267043646,-440.0,0.00021369,2]
[364835363,1749267043656,-587.05,0.00021369,2]
[364835365,1749267043665,-440.0,0.00021369,2]
[364835367,1749267043676,-440.0,0.00021369,2]
[364835369,1749267043685,-806.76,0.00021369,2]
[364835371,1749267043694,-758.23,0.00021369,2]
[364835373,1749267043703,-418.7,0.00021369,2]
[364835375,1749267043713,-440.0,0.00021369,2]
[364835378,1749267043725,-440.0,0.00021369,2]
[364835380,1749267043734,-523.41,0.00021369,2]
[364835382,1749267043744,-937.64,0.00021369,2]
[364835383,1749267043753,-440.0,0.00021369,2]
[364835385,1749267043763,-487.43,0.00021369,2]
[364835387,1749267043772,-440.0,0.00021414,2]
[364835389,1749267043781,-215.0738,0.00021451,2]
[364835391,1749267043791,-726.77522301,0.00021452,5]
[364835394,1749267043801,-150.0,0.00021527,2]
[364835396,1749267043810,-2380.45724693,0.00021545,2]
[364835398,1749267043819,-150.0,0.000216,2]
[364835399,1749267043829,-713.0,0.000216,2]
[364835402,1749267043839,-726.77522301,0.00021624,5]
[364835404,1749267043848,-587.05,0.00021643,2]
[364835406,1749267043858,-440.0,0.00021643,2]
[364835408,1749267043867,-440.0,0.00021643,2]
[364835410,1749267043877,-806.76,0.00021643,2]
[364835411,1749267043887,-758.23,0.00021643,2]
[364835414,1749267043897,-440.0,0.00021643,2]
[364835415,1749267043907,-440.0,0.00021643,2]
[364835418,1749267043917,-523.41,0.00021643,2]
[364835420,1749267043927,-937.64,0.00021643,2]
[364835422,1749267043936,-440.0,0.00021643,2]
[364835424,1749267043947,-487.43,0.00021643,2]
[364835426,1749267043956,-500.0,0.00021645,2]
[364835428,1749267043966,-349.3524006,0.00021645,2]
[364835430,1749267043983,-150.6475994,0.00021645,2]
[364835432,1749267043992,-629.29,0.00021669,3]
[364835434,1749267044002,-314.65,0.00021669,3]
[364835436,1749267044011,-471.99,0.00021669,3]
[364835438,1749267044021,-1258.59,0.00021678,3]
[364835440,1749267044030,-2517.17,0.00021679,3]
[364835442,1749267044040,-157.32,0.00021679,3]
[364835444,1749267044049,-440.0,0.00021688,2]
[364835446,1749267044061,-587.0,0.0002171,2]
[364835448,1749267044071,-500.0,0.00021755,2]
[364835450,1749267044080,-500.0,0.00021755,2]
[364835452,1749267044090,-160.0,0.00021765,3]
[364835454,1749267044099,-726.77522301,0.00021797,6]
[364835456,1749267044109,-49.81536105,0.00021798,3]
[364835672,1749267046286,-964.18,0.00019452,2]
[364835674,1749267046296,-964.18,0.00019726,2]
[364835676,1749267046306,-964.18,0.0002,2]
[364835678,1749267046315,-964.18,0.00020273,2]
[364835680,1749267046325,-964.18,0.00020547,2]
[364835683,1749267046335,-484.89206695,0.00021798,3]
[364835685,1749267046345,-500.0,0.0002185,2]
[364835687,1749267046355,-2225.0,0.00021878,2]
[364835689,1749267046364,-709.28,0.00021878,2]
[364835691,1749267046374,-405.0,0.00021878,2]
[364835693,1749267046383,-965.618,0.00021878,2]
[364835695,1749267046393,-500.0,0.000219,2]
[364835697,1749267046403,-500.0,0.000219,2]
[364835699,1749267046412,-400.0,0.00021917,2]
[364835701,1749267046422,-400.0,0.00021917,2]
[364835703,1749267046431,-400.0,0.00021917,2]
[364835705,1749267046441,-400.0,0.00021917,2]
[364835707,1749267046451,-400.0,0.00021917,2]
[364835709,1749267046461,-339.68708074,0.00021917,2]
[364835711,1749267046472,-587.05,0.00021917,2]
[364835713,1749267046482,-440.0,0.00021917,2]
[364835715,1749267046492,-440.0,0.00021917,2]
[364835717,1749267046501,-806.76,0.00021917,2]
[364835720,1749267046511,-758.23,0.00021917,2]
[364835722,1749267046521,-500.0,0.00021917,2]
[364835724,1749267046531,-500.0,0.00021917,2]
[364835726,1749267046540,-500.0,0.00021917,2]
[364835728,1749267046549,-500.0,0.00021917,2]
[364835730,1749267046559,-500.0,0.00021917,2]
[364835732,1749267046569,-500.0,0.00021917,2]
[364835734,1749267046578,-500.0,0.00021917,2]
[364835736,1749267046587,-500.0,0.00021917,2]
[364835738,1749267046597,-500.0,0.00021917,2]
[364835740,1749267046606,-500.0,0.00021917,2]
[364835742,1749267046616,-513.56808288,0.00021917,2]
[364835744,1749267046625,-440.0,0.00021917,2]
[364835746,1749267046635,-440.0,0.00021917,2]
[364835748,1749267046645,-523.41,0.00021917,2]
[364835750,1749267046655,-937.64,0.00021917,2]
[364835752,1749267046664,-440.0,0.00021917,2]
[364835754,1749267046674,-487.43,0.00021917,2]
[364835756,1749267046683,-500.0,0.00021918,2]
[364835758,1749267046693,-500.0,0.00021918,2]
[364835760,1749267046703,-500.0,0.00021918,2]
[364835762,1749267046712,-500.0,0.00021918,2]
[364835764,1749267046722,-500.0,0.00021918,2]
[364835766,1749267046731,-161.14780569,0.00021918,2]
[364835768,1749267046740,-500.0,0.00021918,2]
[364835771,1749267046750,-500.0,0.00021918,2]
[364835773,1749267046760,-502.74482349,0.00021954,2]
[364835775,1749267046769,-500.0,0.00021962,2]
[364835777,1749267046779,-512.9403448,0.00021962,2]
[364835779,1749267046788,-726.77522301,0.00021969,6]
[364835781,1749267046797,-272.0,0.00022,2]
[364835783,1749267046808,-556.26997144,0.00022093,2]
[364835785,1749267046820,-726.77522301,0.00022141,6]
[364835787,1749267046829,-587.05,0.00022191,2]
[364835789,1749267046839,-440.0,0.00022191,2]
[364835791,1749267046849,-440.0,0.00022191,2]
[364835793,1749267046859,-806.76,0.00022191,2]
[364835795,1749267046869,-758.23,0.00022191,2]
[364835797,1749267046879,-217.76239533,0.00022191,2]
[364835799,1749267046889,-440.0,0.00022191,2]
[364835802,1749267046899,-523.41,0.00022191,2]
[364835804,1749267046908,-937.64,0.00022191,2]
[364835806,1749267046917,-440.0,0.00022191,2]
[364835808,1749267046926,-487.43,0.00022191,2]
[364835810,1749267046936,-473.05065672,0.00022193,2]
[364835812,1749267046946,-1002.20052652,0.00022193,2]
[364835814,1749267046955,-970.993427,0.000222,2]
[364835816,1749267046966,-346.73427049,0.00022243,2]
[364835818,1749267046978,-500.0,0.00022244,2]
[364835820,1749267046988,-465.536034,0.00022302,7]
[364835822,1749267046998,-465.536034,0.00022302,7]
[364835824,1749267047007,-466.104655,0.00022302,2]
[364835826,1749267047016,-466.104655,0.00022302,2]
[364835828,1749267047026,-1000.0,0.00022302,2]
[364835830,1749267047036,-1000.0,0.00022302,2]
[364835832,1749267047045,-726.77522301,0.00022314,7]
[364835834,1749267047056,-500.0,0.00022353,2]
[364835836,1749267047066,-623.23916227,0.00022353,2]
[364835838,1749267047075,-504.5224892,0.00022353,2]
[364835840,1749267047085,-500.0,0.00022353,2]
[364835842,1749267047094,-163.5376499,0.00022356,2]
[364835844,1749267047103,-226.46305236,0.00022364,2]
[364835859,1749267047114,-500.0,0.00022381,2]
[364835861,1749267047239,-251.33907974,0.00022398,2]
[364835863,1749267047249,-87203.59,0.000224,7]
[364835865,1749267047260,-401.32,0.000224,7]
[364835867,1749267047270,-151.430725,0.000224,7]
[364835869,1749267047279,-151.0,0.000224,7]
[364835871,1749267047289,-151.0,0.000224,7]
[364835873,1749267047298,-152.185691,0.000224,7]
[364835876,1749267047308,-465.536034,0.000224,7]
[364835878,1749267047318,-465.536034,0.000224,7]
[364835880,1749267047327,-466.104655,0.000224,2]
[364835882,1749267047337,-466.104655,0.000224,2]
[364835884,1749267047347,-1000.0,0.00022448,2]
[364835886,1749267047356,-1000.0,0.00022448,2]
[364835888,1749267047366,-587.05,0.00022465,2]
[364835890,1749267047375,-440.0,0.00022465,2]
[364835892,1749267047384,-440.0,0.00022465,2]
[364835894,1749267047394,-806.76,0.00022465,2]
[364835896,1749267047404,-758.23,0.00022465,2]
[364835898,1749267047415,-440.0,0.00022465,2]
[364835900,1749267047425,-523.41,0.00022465,2]
[364835902,1749267047435,-937.64,0.00022465,2]
[364835904,1749267047445,-440.0,0.00022465,2]
[364835906,1749267047455,-487.43,0.00022465,2]
[364835908,1749267047466,-726.77522301,0.00022486,7]
[364835910,1749267047476,-14179.3620476,0.000225,2]
[364835912,1749267047485,-511.02791101,0.0002251,2]
[364835914,1749267047495,-556.2699714,0.00022519,2]
[364835916,1749267047505,-1063.58,0.000226,7]
[364835918,1749267047515,-726.77522301,0.00022659,7]
[364835920,1749267047524,-587.05,0.00022739,2]
[364835922,1749267047533,-440.0,0.00022739,2]
[364835925,1749267047543,-440.0,0.00022739,2]
[364835927,1749267047553,-806.76,0.00022739,2]
[364835929,1749267047562,-758.23,0.00022739,2]
[364835931,1749267047572,-440.0,0.00022739,2]
[364835933,1749267047582,-523.41,0.00022739,2]
[364835935,1749267047594,-937.64,0.00022739,2]
[364835937,1749267047603,-440.0,0.00022739,2]
[364835939,1749267047612,-487.43,0.00022739,2]
[364835941,1749267047621,-806.5228942,0.0002277,2]
[364835943,1749267047630,-1016.02,0.000228,10]
[364835945,1749267047640,-223.0315306,0.0002282,2]
[364835947,1749267047649,-800.0,0.00022825,2]
[364835949,1749267047658,-726.77522301,0.00022831,8]
[364835951,1749267047668,-1500.0,0.0002285,2]
[364835953,1749267047677,-1551.56257058,0.0002285,2]
[364835955,1749267047686,-1000.0,0.00022901,2]
[364835957,1749267047702,-591.06774903,0.00022901,2]
[364835959,1749267047712,-1000.0,0.00022929,2]
[364835961,1749267047722,-375.44502,0.00022932,2]
[364835963,1749267047732,-364.7843186,0.00022932,2]
[364835965,1749267047742,-364.7843186,0.00022932,2]
[364835967,1749267047751,-364.7843186,0.00022932,2]
[364835969,1749267047761,-600.0,0.00022932,2]
[364835971,1749267047770,-556.2699714,0.00022946,2]
[364835973,1749267047780,-502.79188584,0.00022973,2]
[364835975,1749267047790,-500.0,0.00022973,2]
[364835977,1749267047799,-500.0,0.00022973,2]
[364835979,1749267047809,-500.0,0.00022973,2]
[364835981,1749267047818,-500.0,0.00022973,2]
[364835983,1749267047828,-501.4219546,0.00022973,2]
[364835986,1749267047838,-600.0,0.00022973,2]
[364835988,1749267047848,-8371.95985056,0.0002299,2]
[364835990,1749267047857,-465.536034,0.0002299,7]
[364835992,1749267047866,-465.536034,0.0002299,7]
[364835994,1749267047875,-466.104655,0.0002299,2]
[364835996,1749267047884,-466.104655,0.0002299,2]
[364835998,1749267047895,-1191.50108694,0.00022996,2]
[364836000,1749267047905,-1500.0,0.00022996,2]
[364836002,1749267047915,-248.39213352,0.00023,2]
[364836004,1749267047924,-213844.78881946,0.00023,2]
[364836006,1749267047935,-3024.13989183,0.00023,2]
[364836008,1749267047944,-12722.42542962,0.00023,2]
[364836010,1749267047953,-15090.79409309,0.00023,2]
[364836012,1749267047963,-47364.62,0.00023,2]
[364836014,1749267047972,-1356.83,0.00023,2]
[364836016,1749267047985,-171.0,0.00023,7]
[364836018,1749267047996,-465.536034,0.00023,7]
[364836020,1749267048005,-465.536034,0.00023,7]
[364836022,1749267048015,-465.536034,0.00023,7]
[364836024,1749267048025,-465.536034,0.00023,7]
[364836026,1749267048035,-466.104655,0.00023,2]
[364836028,1749267048045,-466.104655,0.00023,2]
[364836030,1749267048056,-466.104655,0.00023,2]
[364836032,1749267048066,-466.104655,0.00023,2]
[364836034,1749267048075,-153.93646,0.00023002,7]
[364836036,1749267048085,-726.77522301,0.00023003,8]
[364836038,1749267048094,-587.05,0.00023013,2]
[364836040,1749267048104,-440.0,0.00023013,2]
[364836042,1749267048113,-440.0,0.00023013,2]
[364836044,1749267048122,-806.76,0.00023013,2]
[364836046,1749267048132,-758.23,0.00023013,2]
[364836048,1749267048142,-440.0,0.00023013,2]
[364836050,1749267048152,-523.41,0.00023013,2]
[364836052,1749267048162,-937.64,0.00023013,2]
[364836054,1749267048172,-440.0,0.00023013,2]
[364836056,1749267048181,-487.43,0.00023013,2]
[364836058,1749267048191,-1258.58,0.00023039,3]
[364836060,1749267048200,-629.3,0.00023039,3]
[364836062,1749267048210,-834.52263295,0.0002304,3]
[364836064,1749267048221,-2517.18,0.00023048,3]
[364836066,1749267048230,-5034.34,0.00023049,3]
[364836068,1749267048240,-314.64,0.00023049,3]
[364836071,1749267048250,-168.0,0.00023055,2]
[364836073,1749267048260,-168.0,0.00023055,2]
[364836075,1749267048269,-168.0,0.00023055,2]
[364836077,1749267048278,-168.0,0.00023056,2]
[364836079,1749267048287,-168.0,0.00023056,2]
[364836081,1749267048297,-168.0,0.00023057,2]
[364836083,1749267048306,-160.0,0.000231,3]
[364836085,1749267048315,-1056.55136661,0.00023171,2]
[364836087,1749267048324,-726.77522301,0.00023176,8]
[364836089,1749267048334,-2200.0,0.00023181,2]
[364836091,1749267048348,-231.65,0.00023221,11]
[364836093,1749267048358,-206.0,0.0002325,2]
[364836095,1749267048368,-259.03174415,0.00023287,2]
[364836097,1749267048377,-587.05,0.00023287,2]
[364836099,1749267048387,-440.0,0.00023287,2]
[364836101,1749267048397,-440.0,0.00023287,2]
[364836102,1749267048406,-806.76,0.00023287,2]
[364836104,1749267048416,-758.23,0.00023287,2]
[364836107,1749267048427,-440.0,0.00023287,2]
[364836109,1749267048436,-523.41,0.00023287,2]
[364836110,1749267048446,-937.64,0.00023287,2]
[364836113,1749267048456,-440.0,0.00023287,2]
[364836114,1749267048466,-487.43,0.00023287,2]
[364836117,1749267048476,-151.0,0.000233,9]
[364836119,1749267048486,-150.0,0.00023321,2]
[364836120,1749267048495,-500.0,0.0002334,2]
[364836122,1749267048505,-726.77522301,0.00023348,9]
[364836124,1749267048515,-556.2699714,0.00023372,2]
[364836126,1749267048524,-1503.98280866,0.00023398,2]
[364836128,1749267048534,-87203.59,0.000234,7]
[364836130,1749267048543,-465.536034,0.000234,7]
[364836132,1749267048553,-465.536034,0.000234,7]
[364836134,1749267048563,-466.104655,0.000234,2]
[364836137,1749267048576,-466.104655,0.000234,2]
[364836139,1749267048589,-1500.0,0.00023449,2]
[364836141,1749267048603,-1628.79392077,0.00023477,2]
[364836144,1749267048616,-218450.21745,0.00023499,2]
[364836146,1749267048630,-24100.80418993,0.000235,2]
[364836149,1749267048648,-872.35041136,0.000235,2]
[364838073,1749267070041,-440.0,0.00019178,2]
[364838078,1749267070085,-440.0,0.00019178,2]
[364838083,1749267070128,-440.0,0.00019178,2]
[364838087,1749267070163,-440.0,0.00019178,2]
[364838092,1749267070196,-300.0,0.00019451,2]
[364838096,1749267070228,-440.0,0.00019452,2]
[364838100,1749267070257,-440.0,0.00019452,2]
[364838103,1749267070278,-555.4628909,0.00019452,2]
[364838107,1749267070303,-546.76,0.00019452,2]
[364838111,1749267070327,-467.41509559,0.00019726,2]
[364838114,1749267070353,-440.0,0.00019726,2]
[364838118,1749267070379,-440.0,0.0002,2]
[364839672,1749267087587,440.0,0.00019178,2]
[364839673,1749267087835,440.0,0.00019452,2]
[364839674,1749267088154,440.0,0.00019726,2]
[364839675,1749267088399,440.0,0.0002,2]
[364839696,1749267108028,348.4981472,0.00019178,2]
[364839697,1749267124070,440.0,0.00019178,2]
[364839698,1749267124323,440.0,0.00019452,2]
[364839699,1749267124561,440.0,0.00019726,2]
[364839700,1749267124617,440.0,0.00019178,2]
[364839701,1749267124798,440.0,0.0002,2]
[364839702,1749267124871,440.0,0.00019452,2]
[364839703,1749267125198,440.0,0.00019726,2]
[364839704,1749267125613,440.0,0.0002,2]
[364839705,1749267143036,440.0,0.00019178,2]
[364839706,1749267143279,440.0,0.00019452,2]
[364839707,1749267143556,440.0,0.00019726,2]
[364839708,1749267143803,440.0,0.0002,2]
[364839709,1749267148567,440.0,0.00019178,2]
[364839710,1749267183106,440.0,0.00019178,2]
[364839711,1749267192343,150.0,0.00019824,2]
[364839712,1749267213424,440.0,0.00019178,2]
[364839713,1749267213689,281.37329213,0.00019452,2]
[364839714,1749267228137,440.0,0.00019178,2]
[364839715,1749267233885,440.0,0.00019178,2]
[364839716,1749267234153,440.0,0.00019452,2]
[364839717,1749267234439,440.0,0.00019726,2]
[364839718,1749267234688,343.79545962,0.0002,2]
[364839719,1749267235017,440.0,0.00019178,2]
[364839720,1749267235261,477.09808392,0.00019452,2]
[364839721,1749267239765,440.0,0.00019178,2]
[364839722,1749267240013,440.0,0.00019452,2]
[364839723,1749267240257,440.0,0.00019726,2]
[364839724,1749267240846,440.0,0.0002,2]
[364839725,1749267243391,440.0,0.00019178,2]
[364839726,1749267243841,440.0,0.00019452,2]
[364839727,1749267244127,440.0,0.00019726,2]
[364839728,1749267244384,440.0,0.0002,2]
[364839729,1749267256637,759.8,0.00019178,2]
[364839730,1749267256871,759.8,0.00019452,2]
[364839731,1749267257152,759.8,0.00019726,2]
[364839732,1749267257405,759.8,0.0002,2]
[364839733,1749267277626,440.0,0.00019178,2]
[364839734,1749267286206,440.0,0.00019178,2]
[364839735,1749267290969,10.39703064,0.00019178,2]
[364839736,1749267487285,1389.95704345,0.00024566,120]
[364839739,1749267894190,223.976528,0.00013699,2]
[364839742,1749268038129,-1200.0,0.00019176,2]
[364839743,1749268038151,-300.0,0.00019177,2]
[364839744,1749268038183,-300.0,0.00019177,2]
[364839745,1749268038211,-300.0,0.00019177,2]
[364839746,1749268038235,-280.0,0.00019177,2]
[364839747,1749268038257,-430.0,0.00019178,2]
[364839748,1749268038280,-440.0,0.00019178,2]
[364839749,1749268038305,-430.0,0.00019178,2]
[364839750,1749268038328,-88.5721065,0.00019178,2]
[364839751,1749268054098,-235.58577243,0.00019077,2]
[364839752,1749268054122,-367.09962224,0.00019178,2]
[364839753,1749268054145,-440.0,0.00019178,2]
[364839754,1749268054167,-440.0,0.00019178,2]